[Event "Magistral Szmetan Giardelli 2019"]
[Site "Buenos Aires"]
[Date "2019.12.11"]
[Round "11.4"]
[White "Ricardi, Pablo"]
[Black "Henriquez Villagra, Cristobal"]
[Result "0-1"]
[ECO "B51"]
[WhiteElo "2493"]
[BlackElo "2593"]
[Annotator "ChessBase"]
[PlyCount "100"]
[EventDate "2019.12.01"]
[EventType "tourn"]
[EventCountry "ARG"]
[SourceTitle "playchess.com"]
[Source "ChessBase"]
[SourceQuality "1"]
[TimeControl "40/5400+30:1800+30"]

1. e4 {[%emt 0:00:00]} c5 {[%emt 0:00:00]} 2. Nf3 {[%emt 0:00:30]} d6 {[%emt 0:00:30]} 3. Bb5+ {[%emt 0:00:30]} Nd7 {[%emt 0:00:30]} 4. O-O {[%emt 0:00:30]} a6 {[%emt 0:00:30]} 5. Bxd7+ {[%emt 0:00:30]} Bxd7 {[%emt 0:00:30]} 6. c3 {[%emt 0:00:30]} Nf6 {[%emt 0:04:20]} 7. Re1 {[%emt 0:00:30]} Bg4 {[%emt 0:00:30]} 8. d4 {[%emt 0:00:30]} e6 {[%emt 0:00:30]} 9. h3 {[%emt 0:14:51]} Bh5 {[%emt 0:10:10]} 10. d5 {[%emt 0:00:30]} e5 {[%emt 0:00:30]} 11. Nbd2 {[%emt 0:00:30]} g5 {[%emt 0:05:10]} 12. g4 {[%emt 0:13:57]} Bg6 {[%emt 0:00:30]} 13. Nh2 {[%emt 0:00:30]} h5 {[%emt 0:12:44]} 14. f3 {[%emt 0:00:30]} hxg4 {[%emt 0:00:30]} 15. hxg4 {[%emt 0:00:30]} Nd7 {[%emt 0:00:30]} 16. Ndf1 {[%emt 0:00:30]} Qf6 {[%emt 0:09:00]} 17. Be3 {[%emt 0:06:20]} Be7 {[%emt 0:00:30]} 18. a4 {[%emt 0:00:30]} Rh3 {[%emt 0:00:30]} 19. a5 {[%emt 0:04:29]} Kf8 {[%emt 0:00:30]} 20. Kg2 {[%emt 0:18:31]} Qh8 {[%emt 0:00:30]} 21. b4 {[%emt 0:00:30]} c4 {[%emt 0:00:30]} 22. Ra2 {[%emt 0:00:30]} Kg7 {[%emt 0:00:30]} 23. Kg1 {[%emt 0:00:30]} Qh7 {[%emt 0:00:30]} 24. Rg2 {[%emt 0:00:30]} Rh8 {[%emt 0:04:00]} 25. Qe2 {[%emt 0:04:00]} Qh4 {[%emt 0:09:41]} 26. Nd2 {[%emt 0:11:40]} Rg3 {[%emt 0:00:30]} 27. Ndf1 {[%emt 0:00:30]} Rxg2+ {[%emt 0:00:30]} 28. Kxg2 {[%emt 0:00:30]} Nf6 {[%emt 0:00:30]} 29. Bf2 {[%emt 0:00:30]} Qh3+ {[%emt 0:00:30]} 30. Kg1 {[%emt 0:00:30]} Nxd5 {[%emt 0:00:30]} 31. Bg3 {[%emt 0:10:00]} Nf4 {[%emt 0:05:40]} 32. Bxf4 {[%emt 0:00:30]} exf4 {[%emt 0:00:30]} 33. Qxc4 {[%emt 0:00:30]} Bf6 {[%emt 0:00:30]} 34. Rd1 {[%emt 0:04:20]} Be5 {[%emt 0:00:30]} 35. Rxd6 {[%emt 0:03:31]} Bxd6 {[%emt 0:00:30]} 36. Qd4+ {[%emt 0:00:30]} Kh7 {[%emt 0:00:30]} 37. Qxd6 {[%emt 0:00:30]} Qh4 {[%emt 0:00:30]} 38. Qd5 {[%emt 0:02:50]} Rc8 {[%emt 0:05:52]} 39. c4 {[%emt 0:00:30]} Kh6 {[%emt 0:00:30]} 40. c5 {[%emt 0:00:30]} Qe1 {[%emt 0:02:38]} 41. Qd4 Kh7 {[%emt 0:37:20]} 42. Kg2 Qe2+ {[%emt 0:05:00]} 43. Kg1 Qe1 {[%emt 0:00:30]} 44. Kg2 Rh8 {[%emt 0:08:10]} 45. Qd5 Qxb4 {[%emt 0:00:30]} 46. Qxg5 Qb2+ {[%emt 0:00:30]} 47. Kg1 Qc1 {[%emt 0:00:30]} 48. Qe5 Rc8 {[%emt 0:00:30]} 49. Qf6 Rxc5 {[%emt 0:00:30]} 50. e5 Qe1 {[%emt 0:00:30]} 0-1

[Event "Magistral Szmetan Giardelli 2019"]
[Site "Buenos Aires"]
[Date "2019.12.11"]
[Round "11.5"]
[White "Santiago, Yago De Moura"]
[Black "Flores, Diego"]
[Result "1/2-1/2"]
[ECO "E20"]
[WhiteElo "2479"]
[BlackElo "2608"]
[Annotator "ChessBase"]
[PlyCount "97"]
[EventDate "2019.12.01"]
[EventType "tourn"]
[EventCountry "ARG"]
[SourceTitle "playchess.com"]
[Source "ChessBase"]
[SourceQuality "1"]
[TimeControl "40/5400+30:1800+30"]

1. d4 {[%emt 0:00:00]} Nf6 {[%emt 0:00:00]} 2. c4 {[%emt 0:00:30]} e6 {[%emt 0:00:30]} 3. Nc3 {[%emt 0:00:30]} Bb4 {[%emt 0:00:30]} 4. Bd2 {[%emt 0:00:30]} c5 {[%emt 0:13:01]} 5. a3 {[%emt 0:00:30]} Bxc3 {[%emt 0:04:20]} 6. Bxc3 {[%emt 0:00:30]} Ne4 {[%emt 0:00:30]} 7. Qc2 {[%emt 0:14:51]} Nxc3 {[%emt 0:00:30]} 8. Qxc3 {[%emt 0:00:30]} Qf6 {[%emt 0:00:30]} 9. Nf3 {[%emt 0:00:30]} Nc6 {[%emt 0:10:10]} 10. Rd1 {[%emt 0:00:30]} b6 {[%emt 0:05:10]} 11. e3 {[%emt 0:13:57]} Bb7 {[%emt 0:00:30]} 12. Qd2 {[%emt 0:21:43]} cxd4 {[%emt 0:00:30]} 13. Nxd4 {[%emt 0:00:30]} Nxd4 {[%emt 0:06:20]} 14. Qxd4 {[%emt 0:00:30]} Qxd4 {[%emt 0:00:30]} 15. Rxd4 {[%emt 0:00:30]} Ke7 {[%emt 0:00:30]} 16. f3 {[%emt 0:00:30]} Rhd8 {[%emt 0:23:00]} 17. Be2 {[%emt 0:04:00]} d5 {[%emt 0:13:42]} 18. cxd5 {[%emt 0:00:30]} Bxd5 {[%emt 0:00:30]} 19. Kf2 {[%emt 0:11:40]} e5 {[%emt 0:00:30]} 20. Rd3 {[%emt 0:00:30]} Be6 {[%emt 0:00:30]} 21. Rc1 {[%emt 0:06:50]} Rac8 {[%emt 0:00:30]} 22. Rxc8 {[%emt 0:00:30]} Rxc8 {[%emt 0:00:30]} 23. Ke1 {[%emt 0:00:30]} e4 {[%emt 0:08:50]} 24. Rd2 {[%emt 0:10:41]} exf3 {[%emt 0:00:30]} 25. Bxf3 {[%emt 0:00:30]} Kf6 {[%emt 0:05:51]} 26. Bd1 {[%emt 0:00:30]} Rc1 {[%emt 0:00:30]} 27. Kf2 {[%emt 0:00:30]} Ke5 {[%emt 0:00:30]} 28. Bf3 {[%emt 0:02:38]} a5 {[%emt 0:00:30]} 29. Be2 {[%emt 0:03:20]} g5 {[%emt 0:00:30]} 30. Bd3 {[%emt 0:04:10]} h5 {[%emt 0:00:30]} 31. Rc2 {[%emt 0:00:30]} Rxc2+ {[%emt 0:02:50]} 32. Bxc2 {[%emt 0:00:30]} Bf5 {[%emt 0:00:30]} 33. Bb3 {[%emt 0:00:30]} Be6 {[%emt 0:00:30]} 34. Bc2 f6 {[%emt 0:00:30]} 35. g3 Bf5 {[%emt 0:00:30]} 36. Bb3 Bg4 {[%emt 0:00:30]} 37. Bc2 Bh3 {[%emt 0:00:30]} 38. Bd1 Bg4 39. Bc2 Bd7 40. Bd1 Be8 41. Bc2 h4 42. gxh4 gxh4 43. Kf3 Bd7 44. Kf2 Bc6 45. Bb3 Be4 46. Ke2 f5 47. Kf2 Kd6 48. Ke2 Kc5 49. Be6 1/2-1/2

[Event "Magistral Szmetan Giardelli 2019"]
[Site "Buenos Aires"]
[Date "2019.12.11"]
[Round "11.6"]
[White "Mareco, Sandro"]
[Black "Granda Zuniga, Julio E"]
[Result "1/2-1/2"]
[ECO "D51"]
[WhiteElo "2637"]
[BlackElo "2644"]
[Annotator "ChessBase"]
[PlyCount "23"]
[EventDate "2019.12.01"]
[EventType "tourn"]
[EventCountry "ARG"]
[SourceTitle "playchess.com"]
[Source "ChessBase"]
[SourceQuality "1"]
[TimeControl "40/5400+30:1800+30"]

1. d4 {[%emt 0:00:00]} d5 {[%emt 0:00:00]} 2. c4 {[%emt 0:00:30]} c6 {[%emt 0:00:30]} 3. Nf3 {[%emt 0:00:30]} Nf6 {[%emt 0:00:30]} 4. Nc3 {[%emt 0:00:30]} e6 {[%emt 0:00:30]} 5. Bg5 {[%emt 0:00:30]} h6 {[%emt 0:00:30]} 6. Bh4 {[%emt 0:00:30]} Nbd7 {[%emt 0:04:20]} 7. e3 {[%emt 0:00:30]} g5 {[%emt 0:08:30]} 8. Bg3 {[%emt 0:00:30]} Nh5 {[%emt 0:00:30]} 9. Be5 {[%emt 0:00:30]} Nhf6 {[%emt 0:00:30]} 10. Bg3 {[%emt 0:00:30]} Nh5 {[%emt 0:00:30]} 11. Be5 {[%emt 0:00:30]} Nhf6 {[%emt 0:00:30]} 12. Bg3 {[%emt 0:00:30]} 1/2-1/2